Cogmind - Beta 15 @@@ ROGUE MODE // 2025.10.04 @ 16:40:35 Player: Denial.Of.Name Result: Destroyed by G-47 Trooper with Particle Gun Performance ------------- Evolutions (2) 1000 Regions Visited (3) 600 Robots Destroyed (47) 235 Value Destroyed (1264) 1264 Prototype IDs (2) 40 Alien Tech Used (0) 0 Bonus (-256) -256 TOTAL SCORE: 2883 Bonus ------- Friendly Fire -256 Cogmind --------- Core Integrity 0/550 Matter 239/300 Energy 0/100 System Corruption 7% Temperature Cool (9) Movement Walking (120) Location -8/Materials Parts ------- > --- POWER (1) -------- (None) > --- PROPULSION (4) --- Improved Carbon-fiber Leg (fused) > --- UTILITY (4) ------ Targeting Computer Core Analyzer ECM Suite System Shield > --- WEAPON (2) ------- (None) > --- INVENTORY (5) ---- Light Ion Engine Light Nuclear Core Small Matter Pod (50) Targeting Computer Armor Integrity Analyzer Peak State ------------ > --- POWER ------------ Improved Ion Engine > --- PROPULSION ------- Light Treads Improved Carbon-fiber Leg > --- UTILITY ---------- Targeting Computer Core Analyzer ECM Suite System Shield > --- WEAPON ----------- Heavy Assault Rifle High-powered Shotgun > --- INVENTORY -------- Light Ion Engine Light Nuclear Core Small Matter Pod Targeting Computer Armor Integrity Analyzer [Rating: 22] Favorites ----------- Power Light Ion Engine Engine Light Ion Engine Power Core Light Nuclear Core Propulsion Light Treads Treads Light Treads Leg Aluminum Leg Flight Unit Flight Unit Utility High-capacity Matter Pod Device Trap Scanner Storage High-capacity Matter Pod Processor Targeting Computer Hackware System Shield Protection Light Armor Plating Weapon Assault Rifle Ballistic Gun Assault Rifle Launcher Grenade Launcher Special Weapon Mining Laser Build | -11 -10 -10 -8 ------- Run | Yrd Mat Sub Mat Slots Evolved 4 | . . . 4 Power . | . . . . Propulsion 2 | . . . 2 Utility 2 | . . . 2 Weapon . | . . . . Parts Attached 43 | 7 5 2 29 Power 6 | 1 1 1 3 Engine 5 | 1 1 1 2 Core 1 | . . . 1 Reactor . | . . . . Propulsion 12 | 2 1 . 9 Treads 6 | . 1 . 5 Leg 3 | 2 . . 1 Wheel . | . . . . Hover . | . . . . Flight 3 | . . . 3 Utility 15 | 2 1 1 11 Device 6 | 1 . . 5 Storage 3 | 1 1 . 1 Processor 3 | . . . 3 Hackware 1 | . . . 1 Protection 2 | . . 1 1 Artifact . | . . . . Weapon 10 | 2 2 . 6 Energy Gun . | . . . . Energy Cannon . | . . . . Ballistic Gun 6 | 2 . . 4 Ballistic Cannon . | . . . . Launcher 3 | . 1 . 2 Special Weapon 1 | . 1 . . Impact Weapon . | . . . . Slashing Weapon . | . . . . Piercing Weapon . | . . . . Special Melee Weapon . | . . . . Unidentified Prototypes . | . . . . Corrupted Parts 2 | . . . 2 System Corruption 2 | . . . 2 Parts Lost 20 | . . 4 16 Power 3 | . . . 3 Propulsion 5 | . . . 5 Utility 6 | . . 2 4 Weapon 6 | . . 2 4 Highest Loss Streak 6 | . . 4 6 To Critical Strikes . | . . . . Average Backups 4 | 3 4 3 4 Power . | . . . . Propulsion . | 1 . . . Utility 1 | . 1 2 1 Weapon 1 | 1 1 . 1 Tool/Special . | . . . . Unused Backups 13 | 3 2 . 8 Power 2 | . . . 2 Propulsion 4 | 3 1 . . Utility 3 | . . . 3 Weapon 4 | . 1 . 3 Tool/Special . | . . . . Average Slot Usage (%) 82 | . 100 94 71 Engine 10 | . 14 14 7 Treads 12 | . 12 14 11 Leg 7 | . 15 14 2 Flight 1 | . . . 2 Device 8 | . 4 . 12 Storage 14 | . 23 23 7 Processor 3 | . . . 6 Protection 2 | . . . 3 Ballistic Gun 13 | . 14 14 12 Launcher 7 | . 12 11 2 Peak Build Rating 22 | 9 9 9 22 Average Rating 11 | 4 7 6 15 On Entrance 5 | . 9 7 4 Naked Turns . | . . . . Heaviest Build 24 | 10 14 16 24 Greatest Support 40 | 20 20 20 40 Greatest Overweight (x) 1 | . . . 1 Average Overweight (x) . | . . . . Largest Inventory Capacity 5 | 5 5 5 5 Average Capacity 5 | 5 5 5 5 Most Carried 5 | 5 5 5 5 Average Carried 4 | 3 4 4 4 Final Capacity 5 | 5 5 5 5 Final Carried 5 | 5 5 5 5 Class Distribution -------------------- 52% | Mutant 47% | Scavenger-Mutant Dominant Class ---------------- Mutant | -10/Materials Mutant | -10/Subcaves Scavenger-Mutant | -8/Materials Resources | -11 -10 -10 -8 ----------- Run | Yrd Mat Sub Mat Matter Collected 1494 | 347 131 374 642 Remotely . | . . . . Salvage Created 1530 | 93 152 240 1045 Parts 108 | 10 14 9 75 Haulers Intercepted 1 | . 1 . . Recyclers Shooed . | . . . . Parts Field Recycled . | . . . . Retrieved Matter . | . . . . Parts Self-Destructed 2 | . . 2 . Prevented . | . . . . Kills | -11 -10 -10 -8 ------- Run | Yrd Mat Sub Mat Combat Hostiles Destroyed 33 | 1 3 7 22 Guns 24 | 1 . 3 20 Cannons 1 | . . 1 . AOE 8 | . 3 3 2 Classes Destroyed 12 | 3 3 2 4 Worker 2 | 1 . . 1 Builder 4 | . 1 . 3 Tunneler 2 | 1 1 . . Hauler 1 | . 1 . . Recycler 1 | . . . 1 Watcher 3 | . 1 . 2 Swarmer 9 | . . . 9 Grunt 12 | 1 3 . 8 Sentry 4 | . . . 4 Specialist 1 | . . . 1 Subdweller 7 | . . 7 . Guerrilla 1 | . . 1 . Best Kill Streak 8 | 2 3 5 8 Combat Bots Only 6 | 1 2 5 6 Max Kills in Single Turn 2 | 1 2 2 2 Gunslinging . | . . . . Exploded 2 | . 2 2 1 Melee . | . . . . Uniques/NPCs Destroyed . | . . . . Combat | -11 -10 -10 -8 -------- Run | Yrd Mat Sub Mat Hostile Shots Fired 304 | 7 6 30 261 Missed 93 | 2 1 11 79 Hits 211 | 5 5 19 182 Melee 4 | . . . 4 Projectile 207 | 5 5 19 178 Critical Strikes 5 | . . 1 4 Damage Taken 2930 | 53 138 487 2252 Core 648 | 10 35 47 556 Absorbed by Shields . | . . . . Regen/Repaired (Parts) 176 | . . . 176 Core Remaining (%) 79 | 96 . 63 . Volleys Fired 138 | 5 20 23 90 Largest 2 | 2 2 2 2 Hottest 120 | 40 100 120 62 Shots Fired 198 | 10 31 34 123 Gun 167 | 10 17 23 117 Cannon . | . . . . Launcher 26 | . 11 9 6 Special 5 | . 3 2 . Kinetic 167 | 10 17 23 117 Thermal 5 | . 3 2 . Explosive 20 | . 11 9 . Electromagnetic 6 | . . . 6 Robot Hit Streak 10 | 2 3 7 10 Robot Miss Streak 6 | 2 6 3 4 Penetration Max . | . . . . Secondary Targets 2 | . . . 2 Max Gunslinging Chain 1 | . . . 1 Shots Hit Robots 111 | 5 7 22 77 Core Hits 91 | 4 16 23 48 Critical Kills . | . . . . Critical Parts Destroyed 1 | . . . 1 Critical Strikes 1 | . . . 1 Destroy 1 | . . . 1 Melee Attacks . | . . . . Impact . | . . . . Slashing . | . . . . Piercing . | . . . . Sneak Attacks . | . . . . Combat Hostiles . | . . . . Follow-up Attacks . | . . . . Damage Inflicted 3281 | 74 499 1091 1617 Guns 1523 | 74 67 175 1207 Cannons . | . . . . Explosions 1732 | . 432 892 408 Melee . | . . . . Ramming 2 | . . . 2 Kinetic 1523 | 74 67 175 1207 Thermal 24 | . . 24 . Explosive 1324 | . 432 892 . Electromagnetic 408 | . . . 408 Impact . | . . . . Slashing . | . . . . Piercing . | . . . . Highest Corruption 7 | . . . 7 Average Corruption 6 | . . . 6 Corruption Purged . | . . . . Corruption Blocked . | . . . . Effects 15 | . . . 15 Message Errors 7 | . . . 7 Matter Fused 3 | . . . 3 Heat Flow Errors 1 | . . . 1 Energy Discharges 2 | . . . 2 Parts Fused 1 | . . . 1 Alerts 1 | . . . 1 Overload Shots . | . . . . Overflow Damage 5 | . . . 5 Projectiles . | . . . . Explosions 5 | . . . 5 Melee . | . . . . Knockbacks . | . . . . Impact . | . . . . Kinetic . | . . . . Secondary . | . . . . Self-Inflicted Damage 165 | . 88 68 9 Shots 10 | . 5 4 1 Rammed 2 | . . . 2 Targets Rammed 2 | . . . 2 Kicked . | . . . . Crushed . | . . . . Highest Temperature 228 | . 60 . 228 Average Temperature 27 | . 24 . 28 Received Heat Transfer 1011 | 30 30 132 819 Siege Activations . | . . . . Martial Activations . | . . . . Shielding Activations . | . . . . Robots Disrupted . | . . . . Combat Hostiles . | . . . . Robots Corrupted . | . . . . Combat Hostiles . | . . . . Parts Fried . | . . . . Impact Corruptions . | . . . . Robots Melted . | . . . . Combat Hostiles . | . . . . Parts Melted 2 | . . 2 . Heat Transferred 50 | . . 50 . Parts Sabotaged . | . . . . Parts Stolen . | . . . . Parts Stripped . | . . . . Power Chain Reactions 1 | . . . 1 Alert | -11 -10 -10 -8 ------- Run | Yrd Mat Sub Mat Maximum Alert Level 1 | . . . 1 Low Security (%) 99 | 100 100 . 98 Level 1 . | . . . 1 Level 2 . | . . . . Level 3 . | . . . . Level 4 . | . . . . Level 5 . | . . . . High Security . | . . . . Max Security . | . . . . Peak Influence 200 | 25 76 . 200 Initial . | . . . . Average 60 | 4 11 . 90 Influence Increases 865 | 30 166 . 669 Destroy 0b10 Robot/C 520 | 20 60 . 440 Destroy 0b10 Robot/NC 65 | 10 20 . 35 Destroy Leader 98 | . 14 . 84 Successful Hack 14 | . . . 14 Disable Machine 45 | . . . 45 Destroy Structure 78 | . 72 . 6 Lose Combat Pursuer 45 | . . . 45 Influence Decreases 759 | 30 122 44 563 Entered New Map 22 | . . 22 . Time Decay 617 | 30 122 22 443 Lost Part 120 | . . . 120 Squads Dispatched 6 | . 1 . 5 Investigation 2 | . 1 . 1 Extermination . | . . . . Reinforcement 3 | . . . 3 Assault . | . . . . Garrison 1 | . . . 1 Intercept . | . . . . Searches Triggered . | . . . . Construction Impeded . | . . . . Haulers Reinforced . | . . . . Active Scanning Responses . | . . . . Cargo Convoy Interrupts . | . . . . Stealth | -11 -10 -10 -8 --------- Run | Yrd Mat Sub Mat Distress Signals 4 | . 1 . 3 Communications Jammed . | . . . . Distress Signals . | . . . . Times Spotted 62 | 1 9 9 43 Peak Tracking Total 10 | 1 3 5 10 Tactical Retreats 3 | . . . 3 Traps | -11 -10 -10 -8 ------- Run | Yrd Mat Sub Mat Traps Triggered . | . . . . Indirectly . | . . . . Trap Hack Attempts . | . . . . Triggered . | . . . . Disarmed . | . . . . Reprogrammed . | . . . . Reused . | . . . . Traps Extracted . | . . . . Installed . | . . . . Triggered . | . . . . Most Traps Carried 1 | . . 1 1 Machines | -11 -10 -10 -8 ---------- Run | Yrd Mat Sub Mat Machines Disabled 3 | . . . 3 Max in Single Turn 1 | . . . 1 Machines Repaired . | . . . . Machines Dismantled . | . . . . Machines Sabotaged . | . . . . Overloaded Fab Kills . | . . . . Hacking | -11 -10 -10 -8 --------- Run | Yrd Mat Sub Mat Machines Accessed 7 | . 2 . 5 Terminals 6 | . 2 . 4 Fabricators . | . . . . Repair Stations 1 | . . . 1 Recycling Units . | . . . . Scanalyzers . | . . . . Garrison Access . | . . . . Total Hacks 21 | . 6 . 15 Successful 14 | . 3 . 11 Failed 7 | . 3 . 4 Catastrophic . | . . . . Database Lockouts . | . . . . Manual . | . . . . Terminals 17 | . 6 . 11 Fabricators . | . . . . Repair Stations 4 | . . . 4 Recycling Units . | . . . . Scanalyzers . | . . . . Garrison Access . | . . . . Terminal Hacks 11 | . 3 . 8 Record 5 | . 2 . 3 Prototype ID Bank 1 | . . . 1 Branch Access Points 1 | . . . 1 Emergency Access Points 2 | . . . 2 Alert Level 2 | . 1 . 1 Fabricator Hacks . | . . . . Repair Station Hacks 3 | . . . 3 Scan Component 2 | . . . 2 Repair 1 | . . . 1 Recycling Unit Hacks . | . . . . Scanalyzer . | . . . . Garrison Access Hacks . | . . . . Unauthorized Hacks . | . . . . Terminals . | . . . . Fabricators . | . . . . Repair Stations . | . . . . Recycling Units . | . . . . Scanalyzers . | . . . . Garrison Access . | . . . . Data Cores Recovered . | . . . . Used . | . . . . Hacking Detections 5 | . 2 . 3 Full Trace Events 3 | . 2 . 1 Feedback Events . | . . . . Feedback Blocked . | . . . . Robot Schematics Acquired . | . . . . Robots Built . | . . . . Authchips . | . . . . Time . | . . . . Total Robot Build Rating . | . . . . Part Schematics Acquired . | . . . . Parts Built . | . . . . Authchips . | . . . . Time . | . . . . Total Part Build Rating . | . . . . Parts Repaired 1 | . . . 1 Time 38 | . . . 38 Parts Recycled . | . . . . Recycled Matter . | . . . . Retrieved Matter . | . . . . Retrieved Components . | . . . . Parts Scanalyzed . | . . . . Part Schematics Acquired . | . . . . Parts Damaged . | . . . . Bothacking | -11 -10 -10 -8 ------------ Run | Yrd Mat Sub Mat Used RIF Installer . | . . . . Robots Hacked . | . . . . Non-combat . | . . . . Combat . | . . . . Robot Hacks Applied . | . . . . Relay Couplers Released . | . . . . Fabnet Peak Effective % . | . . . . Robots Rewired . | . . . . Allies Hacked . | . . . . Hacks Repelled . | . . . . Allies | -11 -10 -10 -8 -------- Run | Yrd Mat Sub Mat Total Allies . | . . . . Largest Group . | . . . . Highest-Rated Group . | . . . . Highest-Rated Ally . | . . . . Total Orders . | . . . . Ally Attacks . | . . . . Total Damage . | . . . . Kills . | . . . . Allies Corrupted . | . . . . Allies Melted . | . . . . Intel | -11 -10 -10 -8 ------- Run | Yrd Mat Sub Mat Active Infowar (turns) 1435 | 36 198 . 1201 Optics 673 | . . . 673 Terrain 284 | 36 198 . 50 Traps 750 | . . . 750 Seismic 103 | . . . 103 ECM 232 | . . . 232 Robot Analysis Total . | . . . . Derelict Logs Recovered . | . . . . Drone Launches . | . . . . Drone Recoveries . | . . . . Exploration | -11 -10 -10 -8 ------------- Run | Yrd Mat Sub Mat Turns Passed 2480 | 164 604 404 1308 Spaces Moved 1278 | 120 339 207 612 Core 31 | 31 . . . Treads 967 | . 318 207 442 Legs 280 | 89 21 . 170 Wheels . | . . . . Hover . | . . . . Flight . | . . . . Fastest Speed 50 | 50 120 160 120 Average Speed 155 | 101 157 160 163 Slowest Speed 240 | 120 160 160 240 Overloaded Moves . | . . . . Propulsion Burnouts . | . . . . Robots Hopped . | . . . . Potential Cave-ins . | . . . . Cave-ins Triggered . | . . . . Exploration Rate (%) 25 | 6 39 13 45 Regions Visited 3 Branch Regions 1 Pre-discovered Areas . | . . . . Known Exits Taken . | . . . . Unknown Exits Taken 3 | 1 1 1 . Scrap Searched . | . . . . Spaces Dug 3 | . 3 . . Terrain Destroyed 105 | . 71 29 5 Melee . | . . . . Projectile 3 | . 3 . . AOE 102 | . 68 29 5 Terrain Rammed . | . . . . Walls Destroyed . | . . . . Machines Disabled . | . . . . Actions | -11 -10 -10 -8 --------- Run | Yrd Mat Sub Mat Total 1576 | 153 372 243 808 Wait 19 | 4 . 1 14 Move 1275 | 119 338 206 612 Hop . | . . . . Pick Up 62 | 15 4 5 38 Fast Attach . | . . . . Attach 37 | 7 1 2 27 Detach 2 | . . . 2 Swap 12 | . 5 2 5 Drop 29 | 3 4 4 18 Fire 138 | 5 20 23 90 Melee . | . . . . Ram . | . . . . Kick . | . . . . Crush 2 | . . . 2 Escape Stasis . | . . . . Rewire . | . . . . Trap . | . . . . Miscellaneous . | . . . . Route ------- -11/Scrapyard -10/Materials (discovered 2 exits: [*Mat] / [*Sub]) -10/Subcaves -8/Materials (discovered 1 exit: *Sto) History --------- Turn | Location | Event 2 | -11/Scrapyard | Met Revision 17 92 | -11/Scrapyard | Discovered new exit (range 8) 165 | -11/Scrapyard | Entered Materials 489 | -10/Materials | Discovered new exit (range 9) 596 | -10/Materials | Discovered new exit (range 15) 669 | -10/Materials | Build established: Mutant 769 | -10/Materials | Entered Subcaves 770 | -10/Subcaves | Approached by a straggling Scientist 931 | -10/Subcaves | Ambushed by swarm of Subdwellers 985 | -10/Subcaves | Lost 4 allies 1102 | -10/Subcaves | Discovered new exit (range 5) 1171 | -10/Subcaves | Lost 4 parts (2u2w) 1173 | -10/Subcaves | Entered Materials 1173 | -8/Materials | Evolved 4 slots: Propulsion x2, Utility x2 1327 | -8/Materials | Lost 5 parts (1p2n1u1w) 1671 | -8/Materials | Repaired Arm. Treads? 1721 | -8/Materials | Build established: Scavenger-Mutant 2006 | -8/Materials | Lost 6 parts (1p1n3u1w) 2185 | -8/Materials | Core integrity fell below 50% 2326 | -8/Materials | Identified exit to Storage 2386 | -8/Materials | Garrison activated, responded to threat 2454 | -8/Materials | Core integrity fell below 20% 2481 | -8/Materials | Destroyed by G-47 Trooper with Particle Gun Last Messages --------------- W-25 Informer calls for garrison support. ALERT: Activating Garrison Access M001. [Achievement: Troublemaker] Y-45 Defender emerges from the garrison. ALERT: Hostiles spotted, dispatching reinforcements to Terminal M004. Y-45 Defender destroyed. Switching to secondary target: S-10 Pest. 0K L|<2DWUV/O,GFUO1Q UOWI1VZJDJM3%HVW Imp. Ion Engine destroyed. G-47 Trooper suffers critical hit (Destroy). Destroyed Particle Gun. Hvy. Assault Rifle destroyed. System corrupted: Matter fused (-7). S-10 Pest destroyed. Lgt. Treads destroyed. System corrupted: Imp. Carbon-fiber Leg fused. 4OM>MZWHGAUCAKNGLXXPCXLR%NQE/U Z Hpw. Shotgun destroyed. [Achievement: First Step to Greatness] Map ----- +----------------------------------------------------+ | ????????????????# G" # "" #?????????????? | | ????????????????# """ # ""S #?????????????? | | ????????????????# + "" #?????????????? | | ????????????????# # #?????????????? | | ????????????????######### # ] #?????????????? | | ??????????????????? # # #?????????????? | | ??????????????????? ! # ########?????????????? | | ???????????????????? ?# #????????????????????? | | ???????????????????? ?# #????????????????????? | | ?????????????????##+#+### #????????????????????? | | ???????????####### =%[ #????????????????????? | | ????? =* #????????????????????? | | ?????????######### #????????????????????? | | ???????######????# ########????????????????????? | | ???????# # #???????????????????????????? | | ???????# # #???????????????????????????? | | ???????# + #???????????????????????????? | | ???????# # #???????????????????????????? | | ???????# """T""??# #???????????????????????????? | | ?????????####???## ##??????????????????????????? | | ????????????????# ###+######+####????????????? | | ????????????????# ggo #????????????? | | ????????????????# > +????????????? | | ????????????????# #????????????? | | ????????????????# ## ####+#???????????????? | | ????????????????######## @ #????????????????????? | | ???????????????????????# #????????????????????? | | ???????????????????????# #????????????????????? | | ??????????????????????? #????????????????????? | | ?????????????????????? #????????????????????? | | ????????????????????? #????????????????????? | | ????????????????????? ????????????????????? | | ????????????????????##########???????????????????? | | ?????????????????????????????????????????????????? | | ?????????????????????????????????????????????????? | | ?????????????????????????????????????????????????? | | | | | | | | | | | | | | | | | | | | | | | | | | | | | +----------------------------------------------------+ Best States ------------- Heat Dissipation 41 Energy Generation 14 Energy Capacity 265 Matter Stores 500 Matter Capacity 600 Sight Range 21 Terrain Scan Range 16 Terrain Scan Density 10 ECM Strength 1 Armor Coverage 800 Evasion (%) 55 Targeting Accuracy 5 Core Analysis 6 Recoil Reduction 2 Defensive Hacking 10 Item Schematics ----------------- None Robot Schematics ------------------ None Fabricated ------------ Nothing Repaired ---------- Arm. Treads | 41% | -8/Materials Alien Tech Used ----------------- None Achievements -------------- Backstab Crack Shot First Step to Greatness Loot Pinata One Hack Too Far Part-time Mechanic Storm Trooper Troublemaker Uninvited Guest Challenges ------------ None Game ------ Seed AntimatterMappingCasing Manual? 0 Play Time 01:36:18 Cumulative 1.5 hours Start 2025.10.04 @ 14:29:46 End 2025.10.04 @ 16:40:35 Sessions 2 Manual Loads 0 Difficulty Rogue Special Mode None Game No. 1 Rogue 1 Adventurer 0 Explorer 0 Win Type - Total 0 Types 0/0/0/0/0/0/0/0/0/0 Lore% 0 Gallery% 2 Achievement% 3 Wizard Run 0 Options --------- Layout 1 ASCII 0 Keyboard 0 Movement Arrows Keybinds 0 Fullscreen 1 Font 32/Smallcaps Map View 50x35 Zoom Use 0% Tactical HUD 0 Map Filters NONE Filters NONE Steam 1 RUN: de0e0608-c63c-4126-aa7f-ee1fc9ccf57d